bitfinex-derivatives/quotes_BTCF0:USTF0_20251009
["timestamp","ask_amount","ask_price","bid_price","bid_amount"]
[1760031219888,1.13228926,120400.0,120390.0,1.13042004]
[1760031220092,1.13228926,120400.0,120390.0,0.9811319]
[1760031220498,0.74583,120400.0,120390.0,0.9811319]
[1760031220697,0.74583,120400.0,120390.0,0.2209719]
[1760031220897,0.74583,120400.0,120390.0,0.9811319]
[1760031220898,0.8288451,120400.0,120390.0,0.9811319]
[1760031221195,0.74583,120400.0,120390.0,0.2209719]
[1760031221401,0.3608,120410.0,120400.0,0.2209651]
[1760031221700,0.6408,120410.0,120400.0,1.13041324]
[1760031222200,1.05756746,120410.0,120400.0,1.13041324]
[1760031222400,1.11026746,120410.0,120400.0,1.13041324]
[1760031222801,0.7238082,120410.0,120400.0,1.13041324]
[1760031223003,1.19529746,120410.0,120400.0,0.23279814]
[1760031223201,1.59529746,120410.0,120400.0,0.14928814]
[1760031223399,0.2207451,120400.0,120390.0,0.1665307]
[1760031223700,1.20530436,120400.0,120390.0,0.9266907]
[1760031224096,1.20530436,120400.0,120390.0,0.84367]
[1760031224298,1.20530436,120400.0,120390.0,0.926692]
[1760031224806,0.225662,120390.0,120380.0,0.38069603]
[1760031224997,1.20022126,120390.0,120380.0,1.04215789]
[1760031225197,1.20022126,120390.0,120380.0,1.19135638]
[1760031225398,1.11719926,120390.0,120380.0,1.19135638]
[1760031225698,0.04,120390.0,120380.0,1.16495564]
[1760031226004,0.92021436,120400.0,120390.0,0.172752]
[1760031226206,1.20021436,120400.0,120390.0,0.32194112]
[1760031227004,1.20021436,120400.0,120390.0,0.172752]
[1760031227407,1.20021436,120400.0,120390.0,0.223342]
[1760031227608,1.36725044,120400.0,120390.0,0.223342]
[1760031228105,1.36725044,120400.0,120390.0,0.983502]
[1760031228106,0.98200767,120400.0,120390.0,0.983502]
[1760031228311,1.06502277,120400.0,120390.0,0.983502]
[1760031228511,0.98200767,120400.0,120390.0,0.223342]
[1760031228703,0.67119767,120400.0,120390.0,1.23393967]
[1760031228903,1.09542044,120400.0,120390.0,0.223342]
[1760031229098,1.38725044,120400.0,120390.0,0.08973]
[1760031229302,1.38725044,120400.0,120390.0,0.84989]
[1760031229510,1.33542044,120400.0,120390.0,0.983502]
[1760031229709,1.38725044,120400.0,120390.0,0.932912]
[1760031229910,1.38725044,120400.0,120390.0,0.172752]
[1760031230104,1.38725044,120400.0,120390.0,0.08973]
[1760031230306,0.225662,120390.0,120380.0,2.51088701]
[1760031230506,1.15685967,120390.0,120380.0,3.27104701]
[1760031230706,1.15685967,120390.0,120380.0,0.38681701]
[1760031231011,1.15685967,120390.0,120380.0,1.14697701]
[1760031231513,1.07383767,120390.0,120380.0,1.19856701]
[1760031231711,1.07383767,120390.0,120380.0,1.05037789]
[1760031232113,1.15685967,120390.0,120380.0,0.99978789]
[1760031233312,1.07383767,120390.0,120380.0,0.99978789]
[1760031233514,1.15685967,120390.0,120380.0,0.99978789]
[1760031236412,1.15685967,120390.0,120380.0,1.05037789]
[1760031236612,1.07383767,120390.0,120380.0,0.29021789]
[1760031236811,1.02200767,120390.0,120380.0,0.29021789]
[1760031237016,1.02200767,120390.0,120380.0,1.30077556]
[1760031237212,0.85200767,120390.0,120380.0,1.30077556]
[1760031238309,0.85200767,120390.0,120380.0,0.54061556]
[1760031238512,0.15,120390.0,120380.0,1.4414109]
[1760031238713,0.3608,120410.0,120400.0,0.1336051]
[1760031238912,0.4808,120410.0,120400.0,1.48429044]
[1760031239112,0.6408,120410.0,120400.0,1.38308189]
[1760031239814,0.89119767,120410.0,120400.0,1.38308189]
[1760031240114,0.89119767,120410.0,120400.0,1.13268422]
[1760031240318,0.89119767,120410.0,120400.0,1.38308189]
[1760031240806,1.06085587,120410.0,120400.0,0.53990679]
[1760031241012,1.11115587,120410.0,120400.0,0.99907912]
[1760031241315,1.76155354,120410.0,120400.0,0.14918912]
[1760031241516,1.51115587,120410.0,120400.0,0.84783]
[1760031241812,0.2199651,120400.0,120390.0,0.43023029]
[1760031242115,1.01784767,120400.0,120390.0,1.57412996]
[1760031242314,1.01784767,120400.0,120390.0,0.81400996]
[1760031242514,1.10086277,120400.0,120390.0,1.57412996]
[1760031242714,1.10086277,120400.0,120390.0,1.38075188]
[1760031243017,1.01784767,120400.0,120390.0,0.62063188]
[1760031243216,1.01784767,120400.0,120390.0,1.38075188]
[1760031243412,0.76745,120400.0,120390.0,1.13035421]
[1760031244610,0.56745,120400.0,120390.0,1.52155544]
[1760031244810,0.4808,120400.0,120390.0,1.52155544]
[1760031245008,0.12,120400.0,120390.0,1.77241323]
[1760031245211,0.12,120400.0,120390.0,2.03481323]
[1760031245509,0.12,120400.0,120390.0,2.39561323]
[1760031245710,0.12,120400.0,120390.0,2.004412]
[1760031245915,0.44745,120410.0,120400.0,0.2210851]
[1760031246213,0.8104582,120410.0,120400.0,1.13035232]
[1760031246413,1.20165943,120410.0,120400.0,1.13035232]
[1760031246915,0.8104582,120410.0,120400.0,1.13035232]
[1760031248119,0.72745,120410.0,120400.0,0.37027232]
[1760031248417,0.3608,120420.0,120410.0,0.2210782]
[1760031248618,0.44745,120430.0,120420.0,0.2210713]
[1760031248822,0.72745,120430.0,120420.0,1.17452938]
[1760031249317,0.8607444,120430.0,120420.0,1.17452938]
[1760031249707,1.65194563,120430.0,120420.0,0.19337808]
[1760031249912,1.65194563,120430.0,120420.0,0.76004]
[1760031250113,1.65194563,120430.0,120420.0,0.9307513]
[1760031250318,1.2104444,120430.0,120420.0,0.9811113]
[1760031250519,0.72745,120430.0,120420.0,0.2210713]
[1760031250719,0.72745,120430.0,120420.0,0.9811113]
[1760031252118,0.28,120430.0,120420.0,1.37231253]
[1760031252319,0.28,120430.0,120420.0,1.42179884]
[1760031252511,0.3608,120440.0,120430.0,0.2210644]
[1760031252718,0.3608,120450.0,120440.0,0.2210575]
[1760031252914,0.6808,120450.0,120440.0,1.37225873]
[1760031253119,0.6808,120450.0,120440.0,1.52126251]
[1760031253315,0.32,120450.0,120440.0,1.12206251]
[1760031253521,0.32,120450.0,120440.0,1.52126251]
[1760031254213,0.321,120450.0,120440.0,0.67827501]
[1760031254518,0.40765,120450.0,120440.0,3.20334128]
[1760031254720,0.40765,120450.0,120440.0,3.0543375]
[1760031255522,0.321,120450.0,120440.0,3.0542975]
[1760031255824,0.321,120450.0,120440.0,3.0541775]
[1760031256024,0.6818,120450.0,120440.0,3.0541775]
[1760031256626,0.321,120450.0,120440.0,2.68545873]
[1760031256923,0.321,120450.0,120440.0,3.44537873]
[1760031257822,0.6818,120450.0,120440.0,3.44537873]
[1760031258021,0.321,120450.0,120440.0,3.44537873]
[1760031258728,0.76845,120450.0,120440.0,0.2210575]
[1760031258921,0.76845,120450.0,120440.0,3.0539375]
[1760031259123,0.76845,120450.0,120440.0,3.0538975]
[1760031259522,0.76845,120450.0,120440.0,0.2210575]
[1760031259723,0.76845,120450.0,120440.0,3.0538975]
[1760031259919,0.6818,120450.0,120440.0,3.0538975]
[1760031260128,0.321,120450.0,120440.0,3.0538975]
[1760031261328,0.6818,120450.0,120440.0,3.44509873]
[1760031261925,0.321,120450.0,120440.0,3.44509873]
[1760031262125,0.321,120450.0,120440.0,3.0538975]
[1760031262327,0.321,120450.0,120440.0,3.44509873]
[1760031263128,0.321,120450.0,120440.0,3.84509873]
[1760031263329,0.071,120450.0,120440.0,4.20589873]
[1760031263822,0.44745,120470.0,120460.0,0.2210437]
[1760031264021,0.7804168,120470.0,120460.0,0.9808037]
[1760031264222,1.22191803,120470.0,120460.0,0.08771]
[1760031264422,0.2199306,120450.0,120440.0,2.21087]
[1760031264623,1.28193183,120450.0,120440.0,2.7331775]
[1760031264822,0.8907306,120450.0,120440.0,2.7331775]
[1760031265022,0.75745,120450.0,120440.0,3.0535775]
[1760031265319,0.7404306,120450.0,120440.0,0.2210575]
[1760031265623,0.65745,120450.0,120440.0,0.2210575]
[1760031265926,0.7414306,120450.0,120440.0,0.9807775]
[1760031266429,1.18293183,120450.0,120440.0,0.08771]
[1760031266626,0.7917306,120450.0,120440.0,0.84743]
[1760031266826,0.7917306,120450.0,120440.0,0.08771]
[1760031267023,0.1332875,120440.0,120430.0,2.12312]
[1760031267230,1.20528873,120440.0,120430.0,2.83248]
[1760031267528,0.8140875,120440.0,120430.0,2.9658344]
[1760031267724,0.9007375,120440.0,120430.0,0.13807]
[1760031267921,0.9007375,120440.0,120430.0,0.9807444]
[1760031268128,0.81775,120440.0,120430.0,0.2210644]
[1760031268325,0.76745,120440.0,120430.0,0.9807444]
[1760031268827,0.9007375,120440.0,120430.0,0.9303844]
[1760031269334,0.9007375,120440.0,120430.0,0.1707044]
[1760031269529,0.81775,120440.0,120430.0,0.9807444]
[1760031269726,0.9007375,120440.0,120430.0,0.9807444]
[1760031271133,0.4108,120440.0,120430.0,0.61226563]
[1760031271427,0.44706,120460.0,120450.0,0.2172106]
[1760031271626,0.70706,120460.0,120450.0,0.2172106]
[1760031271830,0.8413237,120460.0,120450.0,0.9768906]
[1760031272025,1.63252493,120460.0,120450.0,0.9244506]
[1760031272427,1.54955123,120460.0,120450.0,0.1647706]
[1760031272630,1.55055123,120460.0,120450.0,0.9768906]
[1760031272930,0.1342706,120450.0,120440.0,0.2172175]
[1760031273234,0.1692475,120440.0,120430.0,0.21514]
[1760031273433,0.38626,120440.0,120430.0,3.04758]
[1760031274130,0.08626,120440.0,120430.0,3.04758]
[1760031274328,0.5310406,120450.0,120440.0,0.2172175]
[1760031274531,0.8110406,120450.0,120440.0,0.2172175]
[1760031274732,0.8623306,120450.0,120440.0,0.1647775]
[1760031275138,0.8613306,120450.0,120440.0,0.1647775]
[1760031275738,0.8613306,120450.0,120440.0,0.08179]
[1760031276241,0.8110406,120450.0,120440.0,0.2172175]
[1760031276838,0.8623306,120450.0,120440.0,0.2172175]
[1760031277031,0.72806,120450.0,120440.0,0.2172175]
[1760031277235,0.72806,120450.0,120440.0,1.36809873]
[1760031277438,0.4518,120450.0,120440.0,1.36809873]
[1760031277637,0.4518,120450.0,120440.0,1.36805873]
[1760031278139,0.091,120450.0,120440.0,0.9768575]
[1760031278335,0.3608,120460.0,120450.0,0.2172106]
[1760031278638,0.53706,120460.0,120450.0,0.9768506]
[1760031278836,0.75706,120460.0,120450.0,0.9768506]
[1760031279434,0.75806,120460.0,120450.0,0.2172106]
[1760031279640,0.8923237,120460.0,120450.0,0.9768506]
[1760031279934,0.39726,120460.0,120450.0,0.2172106]
[1760031280139,0.311,120460.0,120450.0,1.36805183]
[1760031280533,0.75806,120460.0,120450.0,0.9768506]
[1760031280729,0.311,120460.0,120450.0,1.00841183]
[1760031280940,0.002,120460.0,120450.0,2.12885183]
[1760031281143,0.002,120460.0,120450.0,3.44193183]
[1760031281340,0.002,120460.0,120450.0,3.84073183]
[1760031281735,0.002,120460.0,120450.0,4.20153183]
[1760031282542,0.002,120460.0,120450.0,3.80153183]
[1760031283532,0.44706,120480.0,120470.0,0.1354068]
[1760031283734,0.75706,120480.0,120470.0,0.9767568]
[1760031284133,0.75706,120480.0,120470.0,0.2171968]
[1760031284335,0.3608,120490.0,120480.0,0.1353999]
[1760031284635,0.3608,120510.0,120500.0,0.0829462]
[1760031284941,0.64706,120510.0,120500.0,0.60837743]
[1760031285136,0.3608,120520.0,120500.0,2.68093743]
[1760031285336,0.59631,120520.0,120510.0,0.9743593]
[1760031285742,0.59631,120520.0,120510.0,0.2147993]
[1760031286041,0.15,120520.0,120510.0,1.73474057]
[1760031286336,0.23551,120520.0,120510.0,0.98273934]
[1760031286541,0.23551,120520.0,120510.0,1.04784351]
[1760031286742,0.23551,120520.0,120510.0,0.28832351]
[1760031286944,0.3194424,120520.0,120510.0,1.04784351]
[1760031287538,0.3194424,120520.0,120510.0,0.28832351]
[1760031287748,0.23651,120520.0,120510.0,1.04776351]
[1760031287940,0.23751,120520.0,120510.0,1.04776351]
[1760031288140,0.23751,120520.0,120510.0,0.28832351]
[1760031288345,0.23751,120520.0,120510.0,0.64912351]
[1760031288542,0.23751,120520.0,120510.0,0.28832351]
[1760031288846,0.23751,120520.0,120510.0,1.04776351]
[1760031289139,0.23751,120520.0,120510.0,0.28832351]
[1760031289347,0.23751,120520.0,120510.0,1.04776351]
[1760031289746,0.23751,120520.0,120510.0,0.28832351]
[1760031290047,0.23751,120520.0,120510.0,1.04772351]
[1760031291142,0.23751,120520.0,120510.0,0.28832351]
[1760031291343,0.23751,120520.0,120510.0,1.04772351]
[1760031291749,0.3204424,120520.0,120510.0,0.96474421]
[1760031292049,0.23751,120520.0,120510.0,1.04768351]
[1760031292545,0.23751,120520.0,120510.0,1.04764351]
[1760031293249,0.7348524,120520.0,120510.0,0.22932347]
[1760031293549,0.7348524,120520.0,120510.0,0.98864347]
[1760031294344,0.59831,120520.0,120510.0,1.03922347]
[1760031294746,0.6812424,120520.0,120510.0,0.19696417]
[1760031295042,1.1348524,120520.0,120510.0,0.90566417]
[1760031295247,1.1348524,120520.0,120510.0,0.22932347]
[1760031295448,1.1348524,120520.0,120510.0,0.98860347]
[1760031295649,1.1348524,120520.0,120510.0,0.22932347]
[1760031295848,1.1348524,120520.0,120510.0,0.06510417]
[1760031296048,0.082953,120490.0,120480.0,2.2072358]
[1760031296342,0.08551,120490.0,120480.0,2.8136358]
[1760031296541,0.08551,120490.0,120480.0,2.2072358]
[1760031296746,0.08551,120490.0,120480.0,3.39392234]
[1760031297145,0.38551,120490.0,120480.0,3.47516234]
[1760031297646,0.38551,120490.0,120480.0,2.71592234]
[1760031297846,0.38551,120490.0,120480.0,3.47516234]
[1760031298548,0.468463,120490.0,120480.0,0.20036654]
[1760031298847,0.522073,120490.0,120480.0,0.90716654]
[1760031299044,0.522073,120490.0,120480.0,0.23088644]
[1760031299238,0.522073,120490.0,120480.0,0.90716654]
[1760031299448,0.522073,120490.0,120480.0,0.99012644]
[1760031299648,0.43912,120490.0,120480.0,0.99012644]
[1760031299853,0.43912,120490.0,120480.0,1.04013644]
[1760031300349,0.522073,120490.0,120480.0,0.82588654]
[1760031300552,1.59310232,120490.0,120480.0,0.06664654]
[1760031300751,1.59310232,120490.0,120480.0,0.75924]
[1760031301049,0.79992,120490.0,120480.0,0.23875534]
[1760031301246,0.16551,120490.0,120480.0,1.40880534]
[1760031301550,0.16551,120490.0,120480.0,1.04800534]
[1760031302151,0.44613,120490.0,120480.0,1.04800534]
[1760031302347,0.39551,120490.0,120480.0,1.04800534]
[1760031302546,0.10551,120490.0,120480.0,1.04800534]
[1760031302950,0.08551,120490.0,120480.0,1.04800534]
[1760031303250,0.519083,120490.0,120480.0,0.23875534]
[1760031303455,1.22931232,120490.0,120480.0,0.15057534]
[1760031303752,0.38551,120490.0,120480.0,0.28876534]
[1760031304053,0.10551,120490.0,120480.0,1.40880534]
[1760031304348,0.11551,120490.0,120480.0,1.40880534]
[1760031304550,0.08551,120490.0,120480.0,1.04800534]
[1760031304854,0.72631,120490.0,120480.0,1.04800534]
[1760031305250,0.72631,120490.0,120480.0,0.28876534]
[1760031305451,1.17011232,120490.0,120480.0,0.06761544]
[1760031305648,0.05062,120480.0,120470.0,2.57414972]
[1760031305853,0.34062,120480.0,120470.0,3.59578972]
[1760031306352,0.34062,120480.0,120470.0,2.83654972]
[1760031306552,0.34062,120480.0,120470.0,3.59578972]
[1760031306957,0.34062,120480.0,120470.0,3.59582972]
[1760031308049,0.34062,120480.0,120470.0,2.83654972]
[1760031308245,0.34062,120480.0,120470.0,3.59582972]
[1760031308452,0.42876,120480.0,120470.0,0.6232]
[1760031308651,0.2217268,120470.0,120460.0,0.19222717]
[1760031308851,1.18275612,120470.0,120460.0,1.03453539]
[1760031309052,0.42876,120470.0,120460.0,1.03453539]
[1760031309247,0.8725268,120470.0,120460.0,0.8422537]
[1760031309453,0.8725268,120470.0,120460.0,0.9304337]
[1760031309654,0.8725268,120470.0,120460.0,0.1711537]
[1760031309953,0.8725268,120470.0,120450.0,0.10410169]
[1760031309954,0.2217337,120460.0,120450.0,0.10410169]
[1760031310156,1.21276302,120460.0,120450.0,0.10410169]
[1760031310451,1.12978932,120460.0,120450.0,0.75928]
[1760031310657,1.21276302,120460.0,120440.0,2.22255215]
[1760031310851,0.9417337,120460.0,120450.0,0.75928]
[1760031311358,0.9025337,120460.0,120450.0,0.75928]
[1760031311660,1.61276302,120460.0,120440.0,0.06756475]
[1760031311859,1.3025337,120460.0,120450.0,0.75928]
[1760031312047,1.21276302,120460.0,120430.0,0.54789219]
[1760031312448,1.21276302,120460.0,120430.0,0.4437944]
[1760031312649,0.9025337,120460.0,120440.0,0.75932]
[1760031312857,0.9025337,120460.0,120440.0,1.12012]
[1760031312858,0.5417337,120460.0,120440.0,1.12012]
[1760031313053,0.37062,120460.0,120450.0,0.75932]
[1760031313353,0.1711206,120450.0,120440.0,0.75401672]
[1760031313552,0.4411206,120450.0,120440.0,1.12012]
[1760031313751,0.4411206,120450.0,120440.0,1.2031075]
[1760031314059,0.4411206,120450.0,120440.0,1.2031475]
[1760031314252,0.4411206,120450.0,120440.0,1.51337682]
[1760031314961,0.4411206,120450.0,120440.0,1.43038932]
[1760031315156,0.4411206,120450.0,120440.0,1.51337682]
[1760031315362,0.4411206,120450.0,120440.0,0.75401682]
[1760031315558,0.4411206,120450.0,120440.0,1.51337682]
[1760031315861,0.4411206,120450.0,120440.0,1.43038932]
[1760031316156,0.4411206,120450.0,120440.0,1.12016]
[1760031316461,0.4411206,120450.0,120440.0,1.51337682]
[1760031317357,0.4411206,120450.0,120440.0,0.67102932]
[1760031317663,0.8411206,120450.0,120440.0,1.12024]
[1760031319665,0.8411206,120450.0,120440.0,0.3608]
[1760031319859,0.1964384,120440.0,120430.0,0.3608]
[1760031320060,0.4664384,120440.0,120430.0,1.12028]
[1760031320662,0.38345,120440.0,120430.0,0.75402372]
[1760031320963,0.38345,120440.0,120430.0,1.51350372]
[1760031321363,0.4664375,120440.0,120430.0,0.75402372]
[1760031321662,0.4664375,120440.0,120430.0,1.51350372]
[1760031322564,0.4664375,120440.0,120430.0,0.75402372]
[1760031322767,0.4664375,120440.0,120430.0,1.51354372]
[1760031322966,0.4664375,120440.0,120430.0,0.75402372]
[1760031323269,0.4664375,120440.0,120430.0,1.51354372]
[1760031323969,0.4664375,120440.0,120430.0,0.75402372]
[1760031324260,0.4664375,120440.0,120430.0,1.51354372]
[1760031324766,0.4664375,120440.0,120430.0,0.75402372]
[1760031324964,0.4664375,120440.0,120430.0,1.12032]
[1760031325466,0.4664375,120440.0,120430.0,0.4437944]
[1760031325664,0.4664375,120440.0,120430.0,1.2033144]
[1760031327163,0.4664375,120440.0,120430.0,0.4437944]
[1760031327366,0.4664375,120440.0,120430.0,1.2033144]
[1760031327662,0.4664375,120440.0,120430.0,1.51354372]
[1760031327862,0.4664375,120440.0,120430.0,1.51358372]
[1760031328069,0.4664375,120440.0,120430.0,0.75402372]
[1760031328658,0.4664375,120440.0,120430.0,1.51358372]
[1760031329060,0.35814,120440.0,120430.0,1.56359372]
[1760031329265,0.35814,120440.0,120430.0,0.80403372]
[1760031329567,0.4411275,120440.0,120430.0,1.65177372]
[1760031329771,0.4664375,120440.0,120430.0,1.2033544]
[1760031329984,0.4664375,120440.0,120430.0,1.51358372]
[1760031330469,0.4664375,120440.0,120430.0,1.2033544]
[1760031330664,0.4664375,120440.0,120430.0,1.51358372]
[1760031331670,0.4664375,120440.0,120430.0,0.3608]
[1760031331968,0.2004544,120430.0,120420.0,0.3608]
[1760031332166,0.5104544,120430.0,120420.0,0.3608]
[1760031332365,0.9104544,120430.0,120420.0,1.12036]
[1760031332567,0.9104544,120430.0,120420.0,0.3608]
[1760031332773,0.5104544,120430.0,120420.0,1.51359052]
[1760031333171,0.42746,120430.0,120420.0,1.51459052]
[1760031333475,0.4873244,120430.0,120420.0,1.57181052]
[1760031333768,0.40433,120430.0,120420.0,0.90333052]
[1760031333968,0.40433,120430.0,120420.0,1.66389052]
[1760031334369,0.40433,120430.0,120420.0,0.90433052]
[1760031334564,0.31,120430.0,120420.0,2.06389052]
[1760031335773,0.31,120430.0,120420.0,1.30433052]
[1760031335972,0.31,120430.0,120420.0,2.06389052]
[1760031336174,0.31,120430.0,120420.0,1.30433052]
[1760031336375,0.31,120430.0,120420.0,2.06389052]
[1760031337574,0.31,120430.0,120420.0,2.06289052]
[1760031337876,0.31,120430.0,120420.0,1.30333052]
[1760031338271,0.31,120430.0,120420.0,2.06289052]
[1760031338878,0.31,120430.0,120420.0,2.06189052]
[1760031339273,0.31,120430.0,120420.0,1.30233052]
[1760031339474,0.31,120430.0,120420.0,2.06189052]
[1760031339677,0.31,120430.0,120420.0,1.30233052]
[1760031339977,0.31,120430.0,120420.0,2.06189052]
[1760031340272,0.31,120430.0,120420.0,1.30233052]
[1760031340470,0.4183043,120430.0,120420.0,1.30233052]
[1760031340871,0.31,120430.0,120420.0,2.06185052]
[1760031341278,0.31,120430.0,120420.0,1.30233052]
[1760031341475,0.3929942,120430.0,120420.0,1.30233052]
[1760031341879,0.5126342,120430.0,120420.0,1.2033212]
[1760031342178,0.4873242,120430.0,120420.0,1.66185052]
[1760031342878,0.4873242,120430.0,120420.0,0.90233052]
[1760031342879,0.40433,120430.0,120420.0,0.90233052]
[1760031343076,0.40433,120430.0,120420.0,1.66185052]
[1760031343780,0.4873242,120430.0,120420.0,1.66185052]
[1760031344382,0.40433,120430.0,120420.0,1.66185052]
[1760031344580,0.4873242,120430.0,120420.0,0.90233052]
[1760031344780,0.4873242,120430.0,120420.0,1.66185052]
[1760031344982,0.40433,120430.0,120420.0,1.66185052]
[1760031345182,0.4873242,120430.0,120420.0,1.66185052]
[1760031345481,0.40433,120430.0,120420.0,0.90233052]
[1760031345681,0.40433,120430.0,120420.0,1.66185052]
[1760031346376,0.4873242,120430.0,120420.0,1.66185052]
[1760031346980,0.4873242,120430.0,120420.0,0.90233052]
[1760031347281,0.4873242,120430.0,120420.0,1.66181052]
[1760031348081,0.40433,120430.0,120420.0,1.66181052]
[1760031348277,0.4873242,120430.0,120420.0,1.66181052]
[1760031348781,0.4873242,120430.0,120420.0,0.90233052]
[1760031349283,0.5126342,120430.0,120420.0,1.60459052]
[1760031349581,0.4873242,120430.0,120420.0,1.74116904]
[1760031350077,0.4873242,120430.0,120420.0,0.98168904]
[1760031350382,0.4873242,120430.0,120420.0,1.74116904]
[1760031351078,0.4873242,120430.0,120420.0,0.92584904]
[1760031351282,0.4873242,120430.0,120420.0,1.74116904]
[1760031352484,0.40433,120430.0,120420.0,1.74116904]
[1760031352679,0.40433,120430.0,120420.0,1.74112904]
[1760031353075,0.40433,120430.0,120420.0,0.98168904]
[1760031353276,0.4873242,120430.0,120420.0,1.74112904]
[1760031353484,0.4873242,120430.0,120420.0,2.10076429]
[1760031354182,0.40433,120430.0,120420.0,2.10076429]
[1760031354387,0.4873242,120430.0,120420.0,1.34132429]
[1760031354587,0.40433,120430.0,120420.0,1.34132429]
[1760031354886,0.4873242,120430.0,120420.0,2.10072429]
[1760031355784,0.40433,120430.0,120420.0,2.10072429]
[1760031356588,0.40433,120430.0,120420.0,1.34132429]
[1760031356785,0.4873242,120430.0,120420.0,2.20525371]
[1760031357089,0.40433,120430.0,120420.0,2.20525371]
[1760031357284,0.40433,120430.0,120420.0,2.10072429]
[1760031357484,0.40433,120430.0,120420.0,1.34132429]
[1760031357690,0.40433,120430.0,120420.0,2.10072429]
[1760031358787,0.40433,120430.0,120420.0,1.34132429]
[1760031358986,0.40433,120430.0,120420.0,2.10068429]
[1760031360685,0.40433,120430.0,120420.0,2.50068429]
[1760031361686,0.02071,120470.0,120420.0,1.74132429]
[1760031361894,0.46333,120470.0,120460.0,0.64622206]
[1760031362087,0.40253,120470.0,120460.0,1.84931036]
[1760031362285,0.4854967,120470.0,120460.0,1.95384852]
[1760031362786,0.4854967,120470.0,120460.0,1.84931036]
[1760031363090,0.5372367,120470.0,120460.0,1.84931036]
[1760031363290,0.5382367,120470.0,120460.0,1.84931036]
[1760031363694,0.4864967,120470.0,120460.0,1.84931036]
[1760031364187,0.5372367,120470.0,120460.0,1.84931036]
[1760031364588,0.5372367,120470.0,120460.0,1.84927036]
[1760031364795,0.5372367,120470.0,120460.0,0.45111]
[1760031364994,0.5372367,120470.0,120460.0,1.70345556]
[1760031365190,0.4854967,120470.0,120460.0,1.75896556]
[1760031365491,0.40253,120470.0,120460.0,1.75896556]
[1760031365683,0.4854966,120470.0,120460.0,1.08999556]
[1760031365881,0.40253,120470.0,120460.0,1.08999556]
[1760031366083,0.40253,120470.0,120460.0,1.84923556]
[1760031367391,0.40253,120470.0,120460.0,1.08999556]
[1760031367797,0.40253,120470.0,120460.0,1.99819934]
[1760031367990,0.4854966,120470.0,120460.0,1.99819934]
[1760031368191,0.40253,120470.0,120460.0,1.99819934]
[1760031368392,0.40253,120470.0,120460.0,1.23899934]
[1760031368590,0.40253,120470.0,120460.0,1.99819934]
[1760031369193,0.40253,120470.0,120460.0,2.00638457]
[1760031371596,0.4854967,120470.0,120460.0,2.00638457]
[1760031372097,0.4854967,120470.0,120460.0,1.24718457]
[1760031372297,0.4854967,120470.0,120460.0,2.00626457]
[1760031372494,0.4854967,120470.0,120460.0,2.00622457]
[1760031372798,0.40253,120470.0,120460.0,2.00622457]
[1760031373000,0.40253,120470.0,120460.0,2.26862457]
[1760031373698,0.40253,120470.0,120460.0,2.11962079]
[1760031373997,0.40253,120470.0,120460.0,2.10742182]
[1760031374393,0.40253,120470.0,120460.0,1.09818079]
[1760031374594,0.4854966,120470.0,120460.0,1.85718079]
[1760031375498,0.40253,120470.0,120460.0,1.85718079]
[1760031375700,0.40253,120470.0,120460.0,2.10738182]
[1760031375898,0.40253,120470.0,120460.0,1.34838182]
[1760031376097,0.03750128,120470.0,120460.0,1.74838182]
[1760031376397,0.2272238,120490.0,120470.0,0.0829652]
[1760031376596,0.2272298,120480.0,120470.0,0.18700189]
[1760031376795,0.5272298,120480.0,120470.0,1.30676189]
[1760031377399,0.5272298,120480.0,120470.0,1.2027252]
[1760031377601,0.5272298,120480.0,120470.0,1.70312726]
[1760031377795,0.5272298,120480.0,120470.0,0.94416726]
[1760031377994,0.5272298,120480.0,120470.0,1.70312726]
[1760031378190,0.44427,120480.0,120470.0,1.70312726]
[1760031378600,0.5272298,120480.0,120470.0,0.94416726]
[1760031378799,0.44427,120480.0,120470.0,0.94416726]
[1760031379095,0.44427,120480.0,120470.0,1.70308726]
[1760031380697,0.44427,120480.0,120470.0,1.80712395]
[1760031380893,0.44427,120480.0,120470.0,1.04820395]
[1760031381089,0.44427,120480.0,120470.0,1.80708395]
[1760031381494,0.44427,120480.0,120470.0,0.94416726]
[1760031381695,0.5272298,120480.0,120470.0,1.70300726]
[1760031382090,0.44427,120480.0,120470.0,1.70300726]
[1760031382290,0.5272298,120480.0,120470.0,0.94416726]
[1760031382498,0.5272298,120480.0,120470.0,1.70300726]
[1760031382696,0.5272298,120480.0,120470.0,0.94416726]
[1760031382898,0.5272298,120480.0,120470.0,1.70300726]
[1760031383298,0.5272298,120480.0,120470.0,0.94416726]
[1760031383498,0.5272298,120480.0,120470.0,1.70300726]
[1760031384694,0.0829666,120470.0,120460.0,0.46483669]
[1760031384902,0.79743763,120470.0,120460.0,0.71503772]
[1760031385098,1.19743763,120470.0,120460.0,0.25020103]
[1760031385302,1.19743763,120470.0,120460.0,1.36976103]
[1760031386003,1.19743763,120470.0,120460.0,1.00896103]
[1760031386400,1.19843763,120470.0,120460.0,1.09193453]
[1760031386600,0.9492366,120470.0,120460.0,1.70293556]
[1760031387599,0.9492366,120470.0,120460.0,0.86120206]
[1760031387807,0.9492366,120470.0,120460.0,0.75876]
[1760031388006,0.9492366,120470.0,120460.0,1.34213556]
[1760031388304,0.9492366,120470.0,120460.0,1.25916206]
[1760031389906,0.9492366,120470.0,120460.0,1.34213556]
[1760031390705,0.9492366,120470.0,120460.0,1.25916206]
[1760031392102,0.9492366,120470.0,120460.0,1.00896103]
[1760031392303,0.9492366,120470.0,120460.0,1.00892103]
[1760031392604,0.9492366,120470.0,120460.0,1.25912206]
[1760031393201,0.9492366,120470.0,120460.0,1.70289556]
[1760031395008,0.9492366,120470.0,120460.0,1.34209556]
[1760031395202,0.9492366,120470.0,120460.0,1.70289556]
[1760031395505,0.9492366,120470.0,120460.0,1.34209556]
[1760031395802,0.9492366,120470.0,120460.0,1.70289556]
[1760031396108,0.14709,120480.0,120470.0,0.0829666]
[1760031396308,0.14709,120480.0,120470.0,1.19436969]
[1760031396606,0.40709,120480.0,120470.0,0.94416866]
[1760031397807,0.4900498,120480.0,120470.0,1.04852468]
[1760031398005,0.4900498,120480.0,120470.0,1.80716468]
[1760031398202,0.4910498,120480.0,120470.0,1.80716468]
[1760031398810,0.4910498,120480.0,120470.0,1.04852468]
[1760031399011,0.4910498,120480.0,120470.0,1.80712468]
[1760031399204,0.4910498,120480.0,120470.0,1.04852468]
[1760031399397,0.4910498,120480.0,120470.0,0.54812262]
[1760031399598,0.4910498,120480.0,120470.0,1.55692365]
[1760031400009,0.40809,120480.0,120470.0,1.55692365]
[1760031400211,0.40809,120480.0,120470.0,0.79832365]